bitfinex/quotes_SOLUSD_20251212
["timestamp","ask_amount","ask_price","bid_price","bid_amount"]
[1765555999107,91.14647916,133.22,133.18,7.50857439]
[1765555999792,91.14647916,133.22,133.18,19.77438748]
[1765555999994,91.14647916,133.22,133.18,7.50857439]
[1765556000480,91.14647916,133.22,133.17,12.26581309]
[1765556000481,21.49575801,133.21,133.15,15.7099679]
[1765556000687,21.49575801,133.21,133.13,19.44806499]
[1765556000688,95.90581309,133.2,133.13,19.44806499]
[1765556000893,95.90581309,133.2,133.15,7.51029432]
[1765556001089,95.90581309,133.2,133.15,19.77610741]
[1765556001290,0.42,133.19,133.15,7.51029432]
[1765556001493,0.42,133.19,133.15,19.77610741]
[1765556001693,83.22,133.2,133.15,19.77610741]
[1765556001893,83.22,133.2,133.17,12.26581309]
[1765556001894,8.22,133.2,133.17,12.26581309]
[1765556002293,8.22,133.2,133.17,20.44477579]
[1765556002688,16.14759318,133.2,133.16,7.50959412]
[1765556002890,90.72759318,133.2,133.15,12.26581309]
[1765556003203,0.42,133.19,133.14,7.51072379]
[1765556003392,8.22,133.18,133.15,7.51032254]
[1765556003901,8.22,133.18,133.14,12.26581309]
[1765556004403,8.22,133.18,133.13,19.77690943]
[1765556004404,7.50919876,133.17,133.13,19.77690943]
[1765556004806,7.50919876,133.17,133.12,8.87]
[1765556004807,7.50919876,133.17,133.12,16.38183214]
[1765556004989,90.72881177,133.18,133.13,12.93581309]
[1765556005191,83.22,133.18,133.14,12.26581309]
[1765556005516,91.14873591,133.18,133.14,12.26581309]
[1765556006010,83.64,133.18,133.13,26.28990423]
[1765556006217,91.14871985,133.18,133.14,12.26581309]
[1765556006414,91.14871985,133.18,133.14,19.77652019]
[1765556007138,12.26581309,133.15,133.1,20.44879613]
[1765556007302,8.64,133.15,133.11,12.26581309]
[1765556007495,87.68581309,133.14,133.08,12.93581309]
[1765556007696,8.22,133.13,133.08,12.26581309]
[1765556007911,8.22,133.13,133.09,12.26581309]
[1765556008115,8.22,133.13,133.09,0.67]
[1765556008418,7.51201923,133.12,133.08,7.51393339]
[1765556008719,8.64,133.13,133.08,7.51393339]
[1765556008898,75.42,133.12,133.07,15.71478313]
[1765556009089,75.0,133.12,133.07,27.98059622]
[1765556009289,75.0,133.12,133.07,19.78059622]
[1765556009290,8.22,133.11,133.07,19.78059622]
[1765556009494,8.64,133.11,133.07,19.78059622]
[1765556009913,8.64,133.11,133.06,20.45101628]
[1765556010097,75.42,133.1,133.05,12.26581309]
[1765556010300,75.0,133.07,133.01,18.79525222]
[1765556010499,8.22,133.06,133.03,12.26581309]
[1765556010714,75.0,133.07,133.04,12.26581309]
[1765556010994,8.22,133.1,133.06,12.26581309]
[1765556011213,8.22,133.1,133.05,0.67]
[1765556011407,90.73219996,133.12,133.05,0.67]
[1765556011606,90.73219996,133.12,133.08,12.26581309]
[1765556011817,83.22,133.12,133.08,12.26581309]
[1765556012118,75.0,133.08,133.03,0.67]
[1765556012316,75.0,133.08,133.04,12.26581309]
[1765556012508,75.0,133.08,133.04,19.7819598]
[1765556012705,75.0,133.08,133.05,12.26581309]
[1765556012916,83.22,133.12,133.07,12.26581309]
[1765556013112,83.22,133.12,133.05,8.87]
[1765556013113,90.73202504,133.12,133.08,0.67]
[1765556013306,90.73202504,133.12,133.06,0.67]
[1765556013507,90.73202504,133.12,133.08,12.26581309]
[1765556013706,83.22,133.12,133.09,12.26581309]
[1765556013913,83.22,133.12,133.08,12.26581309]
[1765556014130,83.22,133.12,133.09,12.26581309]
[1765556014613,83.22,133.12,133.09,7.51363975]
[1765556014812,75.0,133.14,133.11,12.26581309]
[1765556015013,75.0,133.17,133.13,12.26581309]
[1765556015220,75.0,133.2,133.16,12.26581309]
[1765556015533,75.0,133.2,133.17,12.26581309]
[1765556015719,75.0,133.2,133.17,12.93581309]
[1765556015926,75.0,133.2,133.17,8.21430746]
[1765556016232,8.22,133.21,133.19,7.54430746]
[1765556016729,75.0,133.22,133.19,15.72230462]
[1765556016930,75.0,133.22,133.19,15.05230462]
[1765556017125,75.0,133.22,133.19,15.72230462]
[1765556017433,75.0,133.22,133.2,7.54430746]
[1765556018012,97.59,133.24,133.21,7.54430746]
[1765556018205,75.0,133.24,133.23,7.54430746]
[1765556018410,75.0,133.28,133.23,8.21430746]
[1765556018625,157.50330914,133.28,133.21,8.87]
[1765556018825,75.0,133.26,133.23,7.54430746]
[1765556019035,75.0,133.26,133.24,7.54430746]
[1765556019233,75.0,133.3,133.25,8.21430746]
[1765556019406,75.0,133.3,133.29,7.54430746]
[1765556019607,75.0,133.3,133.27,7.54430746]
[1765556019822,75.0,133.3,133.28,7.54430746]
[1765556020025,75.0,133.3,133.27,7.54430746]
[1765556020437,82.50187676,133.3,133.26,0.67]
[1765556020634,82.50187676,133.3,133.25,15.70414258]
[1765556020805,157.50187676,133.3,133.24,15.04955682]
[1765556021010,157.50187676,133.3,133.25,15.04889607]
[1765556021307,75.0,133.3,133.27,7.54430746]
[1765556021505,8.22,133.31,133.28,7.54430746]
[1765556021712,8.42,133.33,133.3,7.54430746]
[1765556021929,0.2,133.33,133.3,7.54430746]
[1765556022114,0.2,133.33,133.31,7.54430746]
[1765556022819,0.2,133.33,133.29,0.67]
[1765556022820,0.2,133.33,133.28,0.67]
[1765556023332,0.2,133.33,133.28,8.21430746]
[1765556023333,7.70037917,133.33,133.28,8.21430746]
[1765556023508,0.2,133.33,133.3,7.5017103]
[1765556023908,0.2,133.33,133.3,7.54430746]
[1765556024108,0.2,133.33,133.3,0.67]
[1765556024338,0.2,133.33,133.3,8.21430746]
[1765556024634,7.70030614,133.33,133.29,7.50228501]
[1765556024811,82.54430746,133.32,133.27,7.50350312]
[1765556025129,82.54430746,133.32,133.23,0.67]
[1765556025130,75.0,133.28,133.23,0.67]
[1765556025329,8.22,133.29,133.23,19.43440136]
[1765556025548,75.0,133.26,133.2,0.67]
[1765556025748,8.22,133.28,133.21,0.67]
[1765556026034,75.0,133.29,133.26,7.54430746]
[1765556026334,0.2,133.33,133.28,7.54430746]
[1765556026517,0.2,133.33,133.3,7.54430746]
[1765556026718,0.2,133.33,133.31,7.54430746]
[1765556026925,0.2,133.33,133.3,7.54430746]
[1765556027732,0.2,133.33,133.28,15.04730866]
[1765556027733,8.12027238,133.33,133.28,15.04730866]
[1765556028041,8.12027238,133.33,133.26,27.62995334]
[1765556028042,75.0,133.3,133.25,7.5045473]
[1765556028225,83.22,133.3,133.24,15.71943539]
[1765556028536,75.0,133.28,133.23,15.74430746]
[1765556028744,75.0,133.28,133.12,0.75120192]
[1765556028745,82.50448022,133.26,133.21,7.54430746]
[1765556029219,82.50448022,133.26,133.21,8.21430746]
[1765556029422,82.50448022,133.26,133.2,15.05181496]
[1765556029423,90.46878768,133.26,133.2,15.05181496]
[1765556029618,8.22,133.25,133.2,15.05181496]
[1765556029918,8.22,133.25,133.2,15.72181496]
[1765556030225,8.22,133.25,133.21,8.22430746]
[1765556030435,8.22,133.25,133.21,0.68]
[1765556030614,8.22,133.25,133.21,8.22430746]
[1765556030812,8.22,133.25,133.21,15.73081253]
[1765556031015,8.22,133.25,133.22,7.54430746]
[1765556031312,15.72469231,133.25,133.21,7.50650507]
[1765556031535,8.22,133.25,133.21,15.05081253]
[1765556031742,8.22,133.25,133.21,15.73081253]
[1765556032112,75.0,133.24,133.18,8.88]
[1765556032323,82.54035695,133.24,133.18,23.92886915]
[1765556032521,75.0,133.24,133.19,7.54035695]
[1765556032715,8.22,133.25,133.19,19.45006722]
[1765556032922,8.22,133.25,133.21,7.54035695]
[1765556033331,8.22,133.25,133.21,8.22035695]
[1765556033537,8.22,133.25,133.21,0.68]
[1765556034337,82.50423464,133.26,133.21,0.68]
[1765556034521,75.0,133.26,133.22,7.54035695]
[1765556034725,75.0,133.26,133.23,0.68]
[1765556035130,75.42,133.29,133.24,7.54035695]
[1765556035336,90.72248857,133.29,133.24,7.54035695]
[1765556035534,90.72248857,133.29,133.24,0.68]
[1765556035730,90.72248857,133.29,133.25,7.54035695]
[1765556036037,75.0,133.29,133.28,7.54035695]
[1765556036236,7.49972335,133.34,133.28,7.54035695]
[1765556036435,7.49972335,133.34,133.26,8.88]
[1765556036436,0.2,133.36,133.32,7.54035695]
[1765556036809,75.0,133.35,133.3,8.22035695]
[1765556037014,0.2,133.36,133.32,7.54035695]
[1765556037429,0.2,133.36,133.33,0.28432314]
[1765556037739,0.2,133.36,133.34,8.2]
[1765556037941,0.2,133.36,133.35,7.54035695]
[1765556038241,0.2,133.36,133.35,8.22035695]
[1765556038910,0.2,133.36,133.35,15.71941956]
[1765556039226,0.2,133.36,133.35,0.68]
[1765556039427,0.2,133.36,133.35,15.71941956]
[1765556040314,0.2,133.36,133.31,0.68]
[1765556040543,75.0,133.34,133.3,7.54035695]
[1765556040739,75.0,133.34,133.29,0.68]
[1765556041038,75.0,133.32,133.28,8.2]
[1765556041225,75.0,133.32,133.28,15.74035695]
[1765556041424,75.0,133.32,133.29,7.54035695]
[1765556041641,96.4670912,133.36,133.31,7.54035695]
[1765556041840,95.7457171,133.36,133.33,7.54035695]
[1765556042042,0.2,133.36,133.35,7.54035695]
[1765556042337,0.2,133.36,133.35,8.22035695]
[1765556042511,0.2,133.36,133.32,8.88]
[1765556042716,0.2,133.36,133.35,7.54035695]
[1765556042937,0.2,133.36,133.35,15.03941956]
[1765556043135,0.2,133.36,133.35,8.17906261]
[1765556043354,0.2,133.36,133.35,15.71941956]
[1765556044143,83.42,133.42,133.35,15.71941956]
[1765556044144,75.2,133.42,133.36,0.28432314]
[1765556044344,7.6953343,133.42,133.36,0.68]
[1765556044527,8.80994492,133.38,133.3,0.68]
[1765556044737,8.80994492,133.36,133.31,15.04149938]
[1765556044937,8.80994492,133.36,133.26,7.50397183]
[1765556044938,96.85703612,133.33,133.26,7.50397183]
[1765556045147,91.35030187,133.31,133.24,8.22035695]
[1765556045344,91.35030187,133.31,133.24,0.68]
[1765556045544,75.0,133.29,133.24,8.22035695]
[1765556045852,8.80994492,133.28,133.23,15.74035695]
[1765556046049,75.0,133.27,133.22,7.50636268]
[1765556046257,75.0,133.27,133.23,7.54035695]
[1765556046421,8.80994492,133.26,133.21,8.18687353]
[1765556046625,8.80994492,133.26,133.2,8.2]
[1765556046626,75.0,133.25,133.2,8.2]
[1765556046847,82.50523675,133.25,133.2,15.74035695]
[1765556047147,83.12523675,133.25,133.2,23.24783501]
[1765556047450,8.80994492,133.24,133.19,8.22035695]
[1765556047637,8.80994492,133.24,133.2,15.0478593]
[1765556047837,83.12523675,133.25,133.2,15.0478593]
[1765556048023,83.12523675,133.25,133.2,7.50750235]
[1765556048225,83.12523675,133.25,133.2,15.0478593]
[1765556048852,96.2670912,133.27,133.23,7.54035695]
[1765556049757,96.8870912,133.27,133.23,7.54035695]
[1765556049932,83.22,133.29,133.26,7.54035695]
[1765556050134,91.34270704,133.29,133.25,7.54035695]
[1765556050338,75.0,133.31,133.26,0.68]
[1765556050541,75.0,133.31,133.29,7.54035695]
[1765556050741,82.5001913,133.33,133.3,7.54035695]
[1765556050934,82.5001913,133.33,133.29,7.54035695]
[1765556051244,83.1201913,133.33,133.3,7.54035695]
[1765556051443,83.1201913,133.33,133.28,7.50289635]
[1765556051642,75.0,133.33,133.3,7.54035695]
[1765556051855,75.0,133.33,133.31,7.54035695]
[1765556052065,8.84,133.36,133.32,7.54035695]
[1765556052066,75.0,133.36,133.32,7.54035695]
[1765556052352,8.22,133.39,133.35,7.54035695]
[1765556052565,75.0,133.4,133.38,7.54035695]
[1765556052863,75.0,133.4,133.38,15.03770639]
[1765556053045,75.0,133.4,133.38,7.54035695]
[1765556053652,75.0,133.4,133.37,7.54035695]
[1765556054057,75.0,133.4,133.38,7.54035695]
[1765556054231,0.2,133.42,133.39,7.54035695]
[1765556054431,0.2,133.42,133.41,7.54035695]
[1765556055445,0.2,133.42,133.41,15.03604692]
[1765556055757,0.2,133.42,133.38,8.2]
[1765556056053,0.2,133.42,133.39,7.54035695]
[1765556056453,0.2,133.42,133.41,15.03604692]
[1765556056846,0.2,133.42,133.4,15.03649294]
[1765556057046,0.2,133.42,133.41,7.54035695]
[1765556057863,0.2,133.42,133.4,15.03649294]
[1765556058340,0.2,133.42,133.36,31.93435183]
[1765556058545,17.12511812,133.42,133.37,15.03784505]
[1765556059263,83.80994492,133.41,133.36,20.58744815]
[1765556059464,83.80994492,133.41,133.37,7.49782581]
[1765556059762,0.2,133.42,133.38,16.45035695]
[1765556059950,0.2,133.42,133.39,7.54035695]
[1765556060154,0.2,133.42,133.41,7.54035695]
[1765556060834,0.2,133.42,133.41,15.74035695]
[1765556061036,0.2,133.42,133.41,23.23604692]
[1765556061236,0.2,133.42,133.41,23.95604692]
[1765556061763,0.2,133.42,133.41,24.24037006]
[1765556062260,0.2,133.42,133.41,23.95604692]
[1765556062764,0.2,133.42,133.41,23.23604692]
[1765556063853,0.2,133.42,133.37,18.74481767]
[1765556064061,0.2,133.42,133.39,7.4963393]
[1765556064264,0.2,133.42,133.39,15.03669625]
[1765556064853,0.2,133.42,133.39,7.4963393]
[1765556065049,0.62,133.41,133.35,7.54035695]
[1765556065248,0.62,133.41,133.36,8.2]
[1765556065464,0.62,133.41,133.37,7.49787616]
[1765556065673,83.80994492,133.4,133.36,8.2]
[1765556065845,75.0,133.38,133.35,7.54035695]
[1765556066167,75.0,133.38,133.33,16.46035695]
[1765556066349,8.80994492,133.35,133.31,7.54035695]
[1765556066665,8.80994492,133.35,133.3,8.2]
[1765556066869,75.62,133.34,133.29,15.04274713]
[1765556067066,75.0,133.32,133.27,7.54035695]
[1765556067468,75.0,133.32,133.29,7.50242639]
[1765556067672,9.42994492,133.37,133.31,7.54035695]
[1765556067971,75.0,133.34,133.28,7.50286152]
[1765556068262,75.0,133.32,133.27,15.74035695]
[1765556068463,75.0,133.32,133.27,23.24374446]
[1765556068666,75.62,133.32,133.27,23.24374446]
[1765556068872,75.62,133.32,133.27,8.2]
[1765556068873,75.0,133.3,133.27,8.2]
[1765556069040,82.50190371,133.3,133.27,8.2]
[1765556069366,75.62,133.3,133.27,8.2]
[1765556069946,83.22,133.32,133.27,23.24368492]
[1765556070155,9.42994492,133.31,133.27,15.70332797]
[1765556070349,0.62,133.31,133.27,8.2]
[1765556071070,83.80994492,133.3,133.27,8.2]
[1765556071284,75.0,133.33,133.29,7.53248202]
[1765556071570,75.0,133.33,133.3,7.53248202]
[1765556071972,8.80994492,133.34,133.31,7.53248202]
[1765556072350,9.42994492,133.34,133.31,7.53248202]
[1765556072546,75.0,133.35,133.33,7.53248202]
[1765556072857,75.0,133.35,133.31,0.72]
[1765556072858,75.0,133.35,133.32,7.53248202]
[1765556073056,75.0,133.35,133.33,7.53248202]
[1765556073256,82.49802633,133.37,133.33,7.53248202]
[1765556073461,75.62,133.37,133.34,7.53248202]
[1765556073656,75.0,133.37,133.34,7.53248202]
[1765556074063,75.0,133.37,133.31,27.67226947]
[1765556074266,8.80994492,133.38,133.35,7.53248202]
[1765556074446,91.92694059,133.39,133.35,7.53248202]
[1765556074447,75.62,133.39,133.35,7.53248202]
[1765556074648,75.62,133.39,133.36,7.53248202]
[1765556074859,75.0,133.39,133.35,8.92]
[1765556075046,75.0,133.41,133.37,7.53248202]
[1765556075247,75.0,133.41,133.38,7.53248202]
[1765556075775,0.82,133.42,133.39,7.53248202]
[1765556075950,0.2,133.42,133.39,12.21800259]
[1765556076351,0.2,133.42,133.38,12.21800259]
[1765556076546,0.2,133.42,133.37,0.72]
[1765556077177,0.2,133.42,133.38,26.2408157]
[1765556077353,0.2,133.42,133.4,12.21800259]
[1765556077669,0.2,133.42,133.41,12.21800259]
[1765556077985,0.2,133.42,133.39,8.2]
[1765556078160,0.82,133.42,133.39,8.2]
[1765556078667,0.62,133.41,133.37,7.49784818]
[1765556078869,8.80994492,133.4,133.36,8.2]
[1765556079183,9.42994492,133.4,133.36,15.69836834]
[1765556079382,8.80994492,133.4,133.36,27.91637093]
[1765556079567,16.30628362,133.4,133.36,27.91637093]
[1765556079877,95.54294337,133.41,133.36,28.63637093]
[1765556080179,96.16294337,133.41,133.37,12.21800259]
[1765556080553,0.2,133.42,133.39,12.21800259]
[1765556080973,83.80994492,133.41,133.39,8.2]
[1765556081174,83.80994492,133.41,133.37,7.49780955]
[1765556081353,91.30567818,133.41,133.37,19.71581214]
[1765556081558,0.2,133.42,133.38,12.21800259]
[1765556081760,0.2,133.42,133.38,19.71521345]
[1765556081961,0.82,133.42,133.38,19.71521345]
[1765556082279,8.31521573,133.42,133.38,7.49721086]
[1765556082458,7.69521573,133.42,133.37,7.49784363]
[1765556082783,8.31521573,133.42,133.37,20.43584622]
[1765556083161,8.31521573,133.42,133.37,19.71584622]
[1765556083387,0.2,133.42,133.38,0.72]
[1765556083585,0.2,133.42,133.39,8.2]
[1765556084567,75.0,133.41,133.36,19.7162986]
[1765556084761,17.12540126,133.42,133.37,19.7159168]
[1765556085464,0.2,133.42,133.39,12.21800259]
[1765556085676,0.2,133.42,133.38,8.92]
[1765556085864,0.2,133.42,133.39,0.72]
[1765556086055,0.2,133.42,133.39,12.21800259]
[1765556086256,0.2,133.42,133.39,0.72]
[1765556086685,0.2,133.42,133.39,12.93800259]
[1765556087086,7.69527009,133.42,133.38,8.2]
[1765556087381,96.02794751,133.41,133.34,20.41800259]
[1765556087584,75.0,133.39,133.35,7.49867126]
[1765556088275,75.0,133.39,133.35,8.21867126]
[1765556088488,75.0,133.39,133.34,27.91742906]
[1765556088808,75.62,133.39,133.34,15.69942647]
[1765556089083,75.62,133.39,133.32,0.72]
[1765556089084,83.80994492,133.36,133.3,12.21800259]
[1765556089291,7.49802312,133.37,133.32,12.21800259]
[1765556089587,8.11802312,133.37,133.32,20.41800259]
[1765556089902,7.49802312,133.37,133.33,0.72]
[1765556090099,7.49802312,133.37,133.32,8.92]
[1765556090264,96.64794751,133.36,133.3,19.71972525]
[1765556090463,96.64794751,133.36,133.3,28.63972525]
[1765556090697,104.86794751,133.36,133.3,28.63972525]
[1765556090894,92.64994492,133.36,133.31,12.21800259]
[1765556091093,83.22,133.36,133.31,12.93800259]
[1765556091389,75.0,133.36,133.32,20.43875266]
[1765556091590,75.0,133.36,133.33,12.21800259]
[1765556091764,75.0,133.36,133.33,0.72]
[1765556092087,8.80994492,133.35,133.3,27.91952867]
[1765556092477,8.80994492,133.35,133.3,28.63952867]
[1765556092670,8.80994492,133.35,133.31,8.22119564]
[1765556092862,109.46481278,133.36,133.31,20.43919823]
[1765556092863,90.71856204,133.36,133.31,20.43919823]
[1765556093063,90.71856204,133.36,133.32,12.93800259]
[1765556093064,75.0,133.36,133.32,12.93800259]
[1765556093281,75.0,133.36,133.33,7.5001875]
[1765556093494,75.0,133.36,133.33,8.2201875]
[1765556093662,82.49853329,133.36,133.33,0.72]
[1765556093864,90.71783124,133.38,133.32,7.50056414]
[1765556094069,75.0,133.36,133.32,7.50056414]
[1765556094269,75.0,133.36,133.31,20.43909337]
[1765556094579,9.42994492,133.35,133.3,27.9195009]
[1765556094976,9.42994492,133.35,133.3,28.6395009]
[1765556095189,75.0,133.34,133.3,8.2]
[1765556095487,7.5001875,133.33,133.28,12.21800259]
[1765556095689,8.1201875,133.33,133.27,21.13800259]
[1765556096066,8.1201875,133.33,133.28,7.50264876]
[1765556096268,8.1201875,133.33,133.29,7.50242847]
[1765556097686,8.1201875,133.33,133.28,20.44078918]
[1765556097992,8.1201875,133.33,133.28,0.72]
[1765556098294,75.0,133.31,133.26,8.22376032]
[1765556098472,75.0,133.31,133.26,20.44176291]
[1765556098674,75.0,133.31,133.27,8.22353883]
[1765556099700,7.50187546,133.3,133.27,0.72]
[1765556100276,7.50187546,133.3,133.25,8.2]
[1765556100277,75.0,133.28,133.2,7.7074723]
[1765556100484,13.0470912,133.24,133.2,0.2]
[1765556100780,83.80994492,133.23,133.2,0.2]
[1765556101396,109.07503871,133.21,133.2,0.2]
[1765556101598,109.07503871,133.21,133.2,0.1]
[1765556101599,184.35936185,133.21,133.2,0.1]
[1765556101797,184.35936185,133.21,133.1,18.7824071]
[1765556101798,83.80994492,133.18,133.13,19.72927308]
[1765556102000,75.0,133.18,133.15,12.21800259]
[1765556102315,114.32139492,133.21,133.16,12.21800259]
[1765556102316,92.02994492,133.2,133.16,12.21800259]
[1765556102602,92.02994492,133.2,133.14,12.93800259]
[1765556102790,104.24794751,133.2,133.14,8.92]
[1765556103183,8.80994492,133.18,133.14,8.92]
[1765556103386,75.0,133.16,133.12,7.51190246]
[1765556103587,8.80994492,133.15,133.11,8.2]
[1765556103788,8.80994492,133.15,133.09,0.72]
[1765556103789,75.0,133.14,133.09,0.72]
[1765556104178,75.0,133.14,133.09,12.93800259]
[1765556104383,75.0,133.14,133.09,0.72]
[1765556104687,75.0,133.14,133.11,7.51216872]
[1765556105079,75.0,133.14,133.1,7.51304086]
[1765556105286,8.80994492,133.13,133.09,7.51358001]
[1765556105507,75.0,133.12,133.07,8.92]
[1765556105714,75.0,133.12,133.08,7.51418288]
[1765556106015,83.22,133.14,133.09,0.72]
[1765556106414,75.0,133.12,133.08,7.51418288]
[1765556106717,75.0,133.12,133.07,15.71469298]
[1765556106718,95.43800259,133.12,133.07,15.71469298]
[1765556106883,95.95800259,133.12,133.07,15.71469298]
[1765556107606,95.95800259,133.12,133.06,19.50810068]
[1765556107607,83.80994492,133.1,133.06,8.23526564]
[1765556107809,91.32312569,133.1,133.06,0.72]
[1765556107992,103.54112828,133.1,133.05,7.5155349]
[1765556108336,12.28177198,133.09,133.05,7.5155349]
[1765556108496,12.80177198,133.09,133.05,7.5155349]
[1765556108828,12.80177198,133.09,133.01,0.72]
[1765556108829,12.28177198,133.06,133.01,0.72]
[1765556108995,12.28177198,133.06,133.02,7.51714222]
[1765556109319,105.07703612,133.08,133.03,7.51706066]
[1765556109609,12.28177198,133.07,133.02,7.51723245]
[1765556110110,12.80177198,133.07,133.02,7.51723245]
[1765556110310,12.80177198,133.07,133.02,8.23723245]
[1765556110733,12.80177198,133.07,133.0,39.3784469]
[1765556110734,96.6117169,133.06,133.01,7.51819718]
[1765556110896,104.8317169,133.06,133.01,7.51819718]
[1765556111092,75.0,133.08,133.02,13.00177198]
[1765556111294,87.28177198,133.08,133.02,0.72]
[1765556111515,94.79622972,133.08,133.02,0.72]
[1765556111715,87.28177198,133.08,133.02,0.72]
[1765556112234,87.28177198,133.08,133.03,7.5171014]
[1765556112433,95.50177198,133.08,133.03,7.5171014]
[1765556112634,83.22,133.08,133.04,0.72]
[1765556112809,75.0,133.12,133.06,12.28177198]
[1765556113112,75.0,133.12,133.03,35.22985491]
[1765556113113,12.28177198,133.09,133.03,35.22985491]
[1765556113521,105.07703612,133.1,133.03,46.79162689]
[1765556113522,117.3588081,133.1,133.03,46.79162689]
[1765556113715,105.07703612,133.1,133.04,13.00177198]
[1765556114098,8.22,133.1,133.06,26.30392303]
[1765556114309,95.50177198,133.12,133.06,26.30392303]
[1765556114500,95.50177198,133.12,133.06,34.50392303]
[1765556114715,95.50177198,133.12,133.06,35.22392303]
[1765556114913,8.80994492,133.09,133.06,8.2]
[1765556115110,8.80994492,133.09,133.04,12.28177198]
[1765556115300,83.22,133.1,133.05,19.79753876]
[1765556115508,83.22,133.1,133.06,12.28177198]
[1765556115816,92.02994492,133.12,133.06,8.92]
[1765556116019,21.6117169,133.11,133.06,8.2]
[1765556116211,75.0,133.1,133.06,27.99695063]
[1765556116410,88.0470912,133.13,133.07,0.72]
[1765556116613,75.0,133.13,133.09,12.28177198]
[1765556116809,8.74,133.15,133.12,12.28177198]
[1765556116810,75.0,133.15,133.12,12.28177198]
[1765556117003,0.52,133.14,133.09,8.2]
[1765556117204,75.0,133.15,133.1,0.65]
[1765556117618,75.0,133.15,133.11,12.28177198]
[1765556118016,9.32994492,133.14,133.09,8.2]
[1765556118222,75.0,133.16,133.11,12.28177198]
[1765556118422,83.22,133.16,133.12,12.28177198]
[1765556119012,75.0,133.18,133.14,12.28177198]
[1765556119203,29.11960449,133.2,133.14,8.2]
[1765556119204,75.0,133.2,133.14,8.2]
[1765556119416,75.0,133.2,133.17,12.28177198]
[1765556119802,75.0,133.2,133.17,12.93177198]
[1765556120013,75.0,133.23,133.19,12.28177198]
[1765556120230,75.0,133.23,133.19,7.50754379]
[1765556120406,83.02603301,133.23,133.19,7.50754379]
[1765556120613,8.80994492,133.22,133.18,8.2]
[1765556120941,12.28177198,133.21,133.15,8.87]
[1765556121115,96.0917169,133.2,133.14,19.79227732]
[1765556121427,75.0,133.13,133.06,12.95177198]
[1765556121638,21.0917169,133.12,133.06,0.67]
[1765556121839,75.0,133.16,133.08,13.18925277]
[1765556122010,88.0470912,133.16,133.11,19.7942177]
[1765556122207,95.55690134,133.16,133.11,7.51251448]
[1765556122530,21.6117169,133.15,133.1,7.51295972]
[1765556122710,8.80994492,133.13,133.07,12.28177198]
[1765556123105,17.02994492,133.13,133.08,19.79558405]
[1765556123312,17.02994492,133.13,133.09,7.51364494]
[1765556123514,17.02994492,133.13,133.09,19.79510757]
[1765556124019,8.22,133.13,133.1,19.7947435]
[1765556124219,8.22,133.13,133.09,7.51371252]
[1765556124421,21.2670912,133.16,133.11,12.28177198]
[1765556124627,75.0,133.17,133.13,12.28177198]
[1765556124934,8.22,133.18,133.15,12.28177198]
[1765556125124,75.0,133.2,133.14,20.48177198]
[1765556125319,75.0,133.18,133.14,8.2]
[1765556125514,8.80994492,133.17,133.12,12.28177198]
[1765556125733,75.0,133.16,133.1,12.28177198]
[1765556125914,108.54886318,133.16,133.09,26.29799383]
[1765556126232,108.54886318,133.16,133.08,15.71408192]
[1765556126233,19.79322694,133.13,133.08,15.71408192]
[1765556126431,9.32994492,133.15,133.11,12.28177198]
[1765556126728,96.2670912,133.16,133.12,12.28177198]
[1765556127035,96.2670912,133.16,133.08,34.49977473]
[1765556127036,8.22,133.16,133.1,12.56609512]
[1765556127213,83.80994492,133.15,133.1,12.28177198]
[1765556127531,8.22,133.16,133.11,12.28177198]
[1765556127734,8.22,133.16,133.13,12.28177198]
[1765556127932,75.0,133.17,133.12,12.28177198]
[1765556128122,8.80994492,133.16,133.11,12.95177198]
[1765556128326,16.3198102,133.16,133.12,12.28177198]
[1765556128510,17.02994492,133.16,133.12,12.28177198]